bitfinex/quotes_BTCUSD_20250719
["timestamp","ask_amount","ask_price","bid_price","bid_amount"]
[1752897519278,0.03378762,118380.0,118370.0,0.59198391]
[1752897519495,0.03378762,118380.0,118370.0,0.59497391]
[1752897520136,0.03378762,118380.0,118370.0,0.57807839]
[1752897520365,0.03378762,118380.0,118370.0,0.59497406]
[1752897520586,0.02534054,118380.0,118370.0,0.60342171]
[1752897520852,0.02534054,118380.0,118370.0,0.59497406]
[1752897521075,0.03478755,118380.0,118370.0,0.60342178]
[1752897521284,0.03478755,118380.0,118370.0,0.61186943]
[1752897521491,0.02734061,118380.0,118370.0,0.59497377]
[1752897521734,0.02634061,118380.0,118370.0,0.59497377]
[1752897521973,0.0178936,118380.0,118370.0,0.59497377]
[1752897522188,0.0168936,118380.0,118370.0,0.60342135]
[1752897522863,0.05018296,118390.0,118380.0,0.17739482]
[1752897523091,0.03398296,118390.0,118380.0,0.89700475]
[1752897523336,0.03398296,118390.0,118380.0,0.89999475]
[1752897523558,0.03398296,118390.0,118380.0,0.5696161]
[1752897524493,0.03598296,118390.0,118380.0,0.23923745]
[1752897524735,0.01908958,118390.0,118380.0,0.60241062]
[1752897524927,0.02753581,118390.0,118380.0,0.94123621]
[1752897525341,0.0106435,118390.0,118380.0,0.92533621]
[1752897525567,0.01908958,118390.0,118380.0,0.94968308]
[1752897525773,0.01708958,118390.0,118380.0,0.94968308]
[1752897525972,0.02553581,118390.0,118380.0,0.94968308]
[1752897526214,0.02553573,118390.0,118380.0,0.94123621]
[1752897526428,0.02553573,118390.0,118380.0,0.94968308]
[1752897526636,0.02553573,118390.0,118380.0,0.94123621]
[1752897526845,0.0339821,118390.0,118380.0,0.94123628]
[1752897527056,0.02553573,118390.0,118380.0,0.94123628]
[1752897527270,0.02553573,118390.0,118380.0,0.94968322]
[1752897527486,0.02553573,118390.0,118380.0,0.61930457]
[1752897527678,0.03398203,118390.0,118380.0,0.61930457]
[1752897527922,0.02553573,118390.0,118380.0,0.61930457]
[1752897528129,0.01708958,118390.0,118380.0,0.62775144]
[1752897528339,0.02553573,118390.0,118380.0,0.97363009]
[1752897528548,0.03398203,118390.0,118380.0,0.94123628]
[1752897528754,0.03398203,118390.0,118380.0,0.94968322]
[1752897528970,0.02553573,118390.0,118380.0,0.95813009]
[1752897529182,0.02553573,118390.0,118380.0,0.94968322]
[1752897529393,0.01708958,118390.0,118380.0,0.95813009]
[1752897530289,0.02553581,118390.0,118380.0,0.95813009]
[1752897530535,0.02553581,118390.0,118380.0,0.94123628]
[1752897531140,0.03398218,118390.0,118380.0,0.61085763]
[1752897531635,0.03398225,118390.0,118380.0,0.27203197]
[1752897531859,0.22089543,118390.0,118380.0,0.23624745]
[1752897532079,0.06341926,118390.0,118380.0,0.5644861]
[1752897532340,0.21545977,118390.0,118380.0,0.5644861]
[1752897534227,0.21545977,118390.0,118380.0,0.23410745]
[1752897534450,0.21244977,118390.0,118380.0,0.5750534]
[1752897535119,0.21244977,118390.0,118380.0,0.91387928]
[1752897535328,0.21244977,118390.0,118380.0,0.91688928]
[1752897535534,0.19644977,118390.0,118380.0,0.91688928]
[1752897535968,0.02553659,118390.0,118380.0,0.90844205]
[1752897536162,0.0086435,118390.0,118380.0,0.96408301]
[1752897536374,0.02553588,118390.0,118380.0,0.96408301]
[1752897536726,0.02553581,118390.0,118380.0,1.04959329]
[1752897536935,0.01708958,118390.0,118380.0,1.04959329]
[1752897537128,0.02553581,118390.0,118380.0,1.13535291]
[1752897537362,0.01708958,118390.0,118380.0,1.13535291]
[1752897537885,0.02553588,118390.0,118380.0,1.13535291]
[1752897538078,0.03398232,118390.0,118380.0,1.13535291]
[1752897539121,0.02553581,118390.0,118380.0,1.13535291]
[1752897539647,0.01708958,118390.0,118380.0,1.13535291]
[1752897539890,0.02553581,118390.0,118380.0,1.13535291]
[1752897540578,0.02553581,118390.0,118380.0,1.12005291]
[1752897540974,0.01708958,118390.0,118380.0,1.12005291]
[1752897541176,0.02553581,118390.0,118380.0,1.12005291]
[1752897542801,0.02553581,118390.0,118380.0,0.45084874]
[1752897543018,0.03398218,118390.0,118380.0,1.11160604]
[1752897543203,0.03398218,118390.0,118380.0,1.12005291]
[1752897543447,0.03398218,118390.0,118380.0,1.11160604]
[1752897543877,0.04242869,118390.0,118380.0,1.11138723]
[1752897544341,0.02553581,118390.0,118380.0,1.11138723]
[1752897544564,0.03398218,118390.0,118380.0,1.1198341]
[1752897544754,0.03398211,118390.0,118380.0,1.1198341]
[1752897544951,0.04242848,118390.0,118380.0,1.1198341]
[1752897545370,0.03398211,118390.0,118380.0,1.03407448]
[1752897545586,0.04242848,118390.0,118380.0,1.03407448]
[1752897548085,0.03398211,118390.0,118380.0,1.03407448]
[1752897549152,0.04242862,118390.0,118380.0,0.37331718]
[1752897549355,0.04242862,118390.0,118380.0,1.03407448]
[1752897549710,0.04242862,118390.0,118380.0,1.1198341]
[1752897550970,0.04242862,118390.0,118380.0,0.44218299]
[1752897551144,0.04242862,118390.0,118380.0,1.11983424]
[1752897551394,0.03398211,118390.0,118380.0,1.11983424]
[1752897551600,0.04242862,118390.0,118380.0,1.12828111]
[1752897551815,0.0508752,118390.0,118380.0,1.12828111]
[1752897553136,0.04242862,118390.0,118380.0,1.12828111]
[1752897554004,0.0508752,118390.0,118380.0,1.12828111]
[1752897554208,0.04242862,118390.0,118380.0,1.12828111]
[1752897555185,0.0508752,118390.0,118380.0,1.12828111]
[1752897555423,0.04242862,118390.0,118380.0,1.12828111]
[1752897555891,0.03398211,118390.0,118380.0,1.12828111]
[1752897556098,0.04242855,118390.0,118380.0,1.12828111]
[1752897558981,0.03398211,118390.0,118380.0,1.12828111]
[1752897559659,0.02553581,118390.0,118380.0,1.12828111]
[1752897560157,0.01708958,118390.0,118380.0,1.12828111]
[1752897560560,0.02553581,118390.0,118380.0,1.12828111]
[1752897560767,0.00857209,118390.0,118380.0,1.45884011]
[1752897560987,0.00012608,118390.0,118380.0,1.45884011]
[1752897562963,0.00857209,118390.0,118380.0,1.45884011]
[1752897564118,0.01701832,118390.0,118380.0,1.45884011]
[1752897564980,0.01701824,118390.0,118380.0,1.44384011]
[1752897567919,0.02546454,118390.0,118380.0,1.38165911]
[1752897568378,0.01701824,118390.0,118380.0,1.31057611]
[1752897568595,0.02546454,118390.0,118380.0,1.29863811]
[1752897568814,0.00857223,118390.0,118380.0,1.29863811]
[1752897569029,0.00857223,118390.0,118380.0,1.31433811]
[1752897569471,0.00857216,118390.0,118380.0,1.31433811]
[1752897570624,0.00857216,118390.0,118380.0,1.29863811]
[1752897570834,0.00857223,118390.0,118380.0,1.29863811]
[1752897573057,0.00857223,118390.0,118380.0,1.31433811]
[1752897573538,0.00857223,118390.0,118380.0,1.29863811]
[1752897574073,0.00012608,118390.0,118380.0,1.29863811]
[1752897574517,0.00857209,118390.0,118380.0,1.29863811]
[1752897574934,0.00012608,118390.0,118380.0,1.29863811]
[1752897576033,0.00012608,118390.0,118380.0,0.63788081]
[1752897576241,0.00857216,118390.0,118380.0,1.29863811]
[1752897576479,0.00012608,118390.0,118380.0,1.29863811]
[1752897576680,0.00857209,118390.0,118380.0,1.29863811]
[1752897578268,0.00012608,118390.0,118380.0,1.29863811]
[1752897579244,0.01701832,118390.0,118380.0,1.29863811]
[1752897580993,0.02546462,118390.0,118380.0,1.29863811]
[1752897581404,0.03391099,118390.0,118380.0,1.26824733]
[1752897582291,0.02546462,118390.0,118380.0,1.26824733]
[1752897582733,0.02546462,118390.0,118380.0,1.09789033]
[1752897582948,0.02546462,118390.0,118380.0,1.51937933]
[1752897583170,0.02546462,118390.0,118380.0,1.51710832]
[1752897583911,0.02546462,118390.0,118380.0,1.14814967]
[1752897584073,0.01701824,118390.0,118380.0,1.47852832]
[1752897584294,0.00857209,118390.0,118380.0,1.47852832]
[1752897588320,0.01701824,118390.0,118380.0,1.47852832]
[1752897588608,0.01701817,118390.0,118380.0,1.47852832]
[1752897589564,0.0254644,118390.0,118380.0,1.47852832]
[1752897596160,0.00012608,118390.0,118380.0,1.47852832]
[1752897596422,0.01701831,118390.0,118380.0,1.49442832]
[1752897599107,0.00012608,118390.0,118380.0,1.49442832]
[1752897600017,0.00857209,118390.0,118380.0,1.49442832]
[1752897600284,0.00012608,118390.0,118380.0,1.49442832]
[1752897600712,0.00857209,118390.0,118380.0,1.49442832]
[1752897601091,0.00012608,118390.0,118380.0,1.49442832]
[1752897602122,0.00857209,118390.0,118380.0,1.49442832]
[1752897602575,0.00012608,118390.0,118380.0,1.49442832]
[1752897603044,0.00012608,118390.0,118380.0,1.82480697]
[1752897603267,0.00012608,118390.0,118380.0,1.84040697]
[1752897604335,0.00012608,118390.0,118380.0,1.84140697]
[1752897604758,0.00012608,118390.0,118380.0,1.84340697]
[1752897608761,0.00012608,118390.0,118380.0,1.46049797]
[1752897608990,0.00012608,118390.0,118380.0,2.70698202]
[1752897609238,0.00012608,118390.0,118380.0,3.69811797]
[1752897609451,0.00012608,118390.0,118380.0,3.36773932]
[1752897612898,0.00012608,118390.0,118380.0,3.22594132]
[1752897613529,0.00012608,118390.0,118380.0,3.15255032]
[1752897614632,0.00012608,118390.0,118380.0,3.08705032]
[1752897620915,0.00012608,118390.0,118380.0,3.41742897]
[1752897621814,0.00012608,118390.0,118380.0,3.40182897]
[1752897622038,0.00012608,118390.0,118380.0,3.07145032]
[1752897623380,0.00012608,118390.0,118380.0,3.06505754]
[1752897623589,0.04119411,118400.0,118390.0,0.52256482]
[1752897623800,0.05168962,118400.0,118390.0,0.75887472]
[1752897624463,0.06013528,118400.0,118390.0,0.75887472]
[1752897624674,0.06329528,118400.0,118390.0,0.75887472]
[1752897624886,0.07989528,118400.0,118390.0,0.7588748]
[1752897625228,0.07144998,118400.0,118390.0,0.7588748]
[1752897625449,0.07989578,118400.0,118390.0,0.75887487]
[1752897625655,0.07989578,118400.0,118390.0,0.7673211]
[1752897625871,0.07989578,118400.0,118390.0,0.42849622]
[1752897626087,0.07989578,118400.0,118390.0,0.75887487]
[1752897626314,0.07989578,118400.0,118390.0,0.75042857]
[1752897626528,0.07989578,118400.0,118390.0,0.7588748]
[1752897626740,0.08833776,118400.0,118390.0,0.75042857]
[1752897626978,0.08833776,118400.0,118390.0,0.75887487]
[1752897627421,0.08833776,118400.0,118390.0,0.7673211]
[1752897627639,0.08833776,118400.0,118390.0,0.75887487]
[1752897627864,0.08833776,118400.0,118390.0,0.67311525]
[1752897628329,0.08833776,118400.0,118390.0,0.3427366]
[1752897628552,0.08833776,118400.0,118390.0,0.66466895]
[1752897628779,0.07989196,118400.0,118390.0,0.67311518]
[1752897629006,0.08833776,118400.0,118390.0,0.66466895]
[1752897629228,0.08833776,118400.0,118390.0,0.67311525]
[1752897629414,0.08833776,118400.0,118390.0,0.75887487]
[1752897629626,0.08838033,118400.0,118390.0,0.75887487]
[1752897630054,0.07993489,118400.0,118390.0,0.75042857]
[1752897631797,0.07993489,118400.0,118390.0,0.75887487]
[1752897632440,0.05489291,118400.0,118390.0,0.75887487]
[1752897633077,0.01894117,118400.0,118390.0,0.7693811]
[1752897633300,0.02738704,118400.0,118390.0,0.7693811]
[1752897633519,0.04268704,118400.0,118390.0,0.7693811]
[1752897634645,0.05113298,118400.0,118390.0,0.76093487]
[1752897634870,0.05113298,118400.0,118390.0,0.75248857]
[1752897635103,0.05113298,118400.0,118390.0,0.32790393]
[1752897635319,0.18582585,118390.0,118380.0,0.48349959]
[1752897635542,0.2157925,118390.0,118380.0,0.6425371]
[1752897635797,0.24003908,118390.0,118380.0,0.64253717]
[1752897636028,0.0711059,118390.0,118380.0,0.98980991]
[1752897636249,0.05421323,118390.0,118380.0,1.09139611]
[1752897636451,0.05421323,118390.0,118380.0,1.09339625]
[1752897636667,0.05421323,118390.0,118380.0,1.09439625]
[1752897636900,0.05421323,118390.0,118380.0,1.10284326]
[1752897637345,0.05421295,118390.0,118380.0,1.10284326]
[1752897637564,0.05421295,118390.0,118380.0,1.08594917]
[1752897637782,0.05421295,118390.0,118380.0,1.02086917]
[1752897638017,0.05421295,118390.0,118380.0,1.09443625]
[1752897638232,0.05421295,118390.0,118380.0,1.09443655]
[1752897638530,0.05421295,118390.0,118380.0,1.08598932]
[1752897638755,0.22314613,118390.0,118380.0,1.08598932]
[1752897638992,0.22314613,118390.0,118380.0,1.09443655]
[1752897639831,0.0626596,118390.0,118380.0,1.10288363]
[1752897640031,0.0626596,118390.0,118380.0,1.11133064]
[1752897640386,0.0626596,118390.0,118380.0,0.78095199]
[1752897640794,0.0626596,118390.0,118380.0,0.77250498]
[1752897640996,0.03841295,118390.0,118380.0,0.77456498]
[1752897641216,0.03525295,118390.0,118380.0,0.77456498]
[1752897641434,0.03525295,118390.0,118380.0,0.68880536]
[1752897641653,0.20418613,118390.0,118380.0,0.08851028]
[1752897641876,0.55352478,118390.0,118380.0,0.06812]
[1752897643018,0.22314613,118390.0,118380.0,0.06812]
[1752897643335,0.55352478,118390.0,118380.0,0.06812]
[1752897649751,0.89352478,118390.0,118380.0,0.003]
[1752897649965,0.90806563,118390.0,118380.0,0.06808]
[1752897650386,0.93343063,118390.0,118380.0,0.06808]
[1752897650713,0.93343063,118390.0,118380.0,0.06608]
[1752897651540,0.93343063,118390.0,118380.0,0.06508]
[1752897654139,0.59343063,118390.0,118380.0,0.06508]
[1752897654816,0.18436173,118370.0,118350.0,0.03453]
[1752897655024,0.17743965,118350.0,118340.0,0.03423]
[1752897655235,0.17743965,118350.0,118340.0,0.52577915]
[1752897655856,0.18588894,118350.0,118340.0,0.52577915]
[1752897656042,0.20076653,118350.0,118340.0,0.52577915]
[1752897656313,0.20076653,118350.0,118340.0,0.53435538]
[1752897656733,0.20076653,118350.0,118340.0,0.79645679]
[1752897657017,0.20076653,118350.0,118340.0,0.8079068]
[1752897657693,0.20076653,118350.0,118340.0,0.79945679]
[1752897658336,0.20076653,118350.0,118340.0,0.46907814]
[1752897658556,0.20076653,118350.0,118340.0,0.71981002]
[1752897659477,0.19231724,118350.0,118340.0,0.71135994]
[1752897659701,0.17743965,118350.0,118340.0,0.71135987]
[1752897660359,0.17743965,118350.0,118340.0,0.38943123]
[1752897660571,0.17743965,118350.0,118340.0,1.05863847]
[1752897660786,0.01689881,118350.0,118340.0,1.15284788]
[1752897660988,0.02534832,118350.0,118340.0,1.15284788]
[1752897662250,0.01689881,118350.0,118340.0,1.15284788]
[1752897662462,0.01689881,118350.0,118340.0,1.15284738]
[1752897662884,0.01689852,118350.0,118340.0,1.15284738]
[1752897663705,0.02534796,118350.0,118340.0,1.15284738]
[1752897664147,0.02534738,118350.0,118340.0,1.15284738]
[1752897664361,0.02534731,118350.0,118340.0,1.15284738]
[1752897665372,0.01689802,118350.0,118340.0,1.15284738]
[1752897666256,0.00844894,118350.0,118340.0,1.15284738]
[1752897666442,0.01689809,118350.0,118340.0,1.15284738]
[1752897667342,0.01689809,118350.0,118340.0,1.15069449]
[1752897668454,0.0337966,118350.0,118340.0,1.15069449]
[1752897669129,0.04224597,118350.0,118340.0,1.15069449]
[1752897669947,0.0337966,118350.0,118340.0,1.15069449]
[1752897670910,0.0337966,118350.0,118340.0,0.48993719]
[1752897671030,0.0337966,118350.0,118340.0,1.15069449]
[1752897671644,0.02534731,118350.0,118340.0,1.15069449]
[1752897673166,0.01689809,118350.0,118340.0,1.15069449]
[1752897673368,0.01689802,118350.0,118340.0,0.48993719]
[1752897673571,0.01689802,118350.0,118340.0,1.15069449]
[1752897674690,0.02534724,118350.0,118340.0,1.15069449]
[1752897677179,0.02534724,118350.0,118340.0,0.48993719]
[1752897677394,0.03379653,118350.0,118340.0,1.15069449]
[1752897678410,0.02534724,118350.0,118340.0,1.15069449]
[1752897679583,0.01689802,118350.0,118340.0,1.15069449]
[1752897679799,0.02534724,118350.0,118340.0,1.15069449]
[1752897681042,0.0422459,118350.0,118340.0,0.47599008]
[1752897681299,0.0422459,118350.0,118340.0,1.13674738]
[1752897683689,0.0422459,118350.0,118340.0,1.06313766]
[1752897683982,0.03379696,118350.0,118340.0,1.11321766]
[1752897684177,0.0422464,118350.0,118340.0,1.11321766]
[1752897684389,0.04224683,118350.0,118340.0,1.11021766]
[1752897684587,0.03379761,118350.0,118340.0,1.10521766]
[1752897684807,0.03379761,118350.0,118340.0,1.11021766]
[1752897686900,0.0253481,118350.0,118340.0,1.11866738]
[1752897687025,0.0253481,118350.0,118340.0,1.13506738]
[1752897689888,0.01689866,118350.0,118340.0,1.13506738]
[1752897690217,0.01689837,118350.0,118340.0,1.13506738]
[1752897690422,0.02534717,118350.0,118340.0,1.13506738]
[1752897690575,0.03379646,118350.0,118340.0,1.13506738]
[1752897691887,0.04224583,118350.0,118340.0,1.13506738]
[1752897692952,0.03379646,118350.0,118340.0,1.13506738]
[1752897693934,0.04224583,118350.0,118340.0,1.13506738]
[1752897694166,0.04224583,118350.0,118340.0,1.04930776]
[1752897695921,0.04224583,118350.0,118340.0,0.38855046]
[1752897696240,0.04224583,118350.0,118340.0,1.04930776]
[1752897696892,0.04224583,118350.0,118340.0,0.38855046]
[1752897697097,0.04224583,118350.0,118340.0,1.04930776]
[1752897698047,0.03379646,118350.0,118340.0,1.04930776]
[1752897698468,0.03379646,118350.0,118340.0,1.13506738]
[1752897698880,0.04224583,118350.0,118340.0,1.13506738]
[1752897699007,0.03379646,118350.0,118340.0,1.13506738]
[1752897699477,0.04224583,118350.0,118340.0,1.13506738]
[1752897700483,0.03379646,118350.0,118340.0,1.13506738]
[1752897700958,0.04224583,118350.0,118340.0,1.13506738]
[1752897704541,0.03379646,118350.0,118340.0,1.13506738]
[1752897704784,0.04224583,118350.0,118340.0,1.13506738]
[1752897705202,0.04224583,118350.0,118340.0,1.04930776]
[1752897705415,0.04224647,118350.0,118340.0,1.04930776]
[1752897705627,0.04224647,118350.0,118340.0,1.03290776]
[1752897706256,0.20278767,118350.0,118340.0,0.95092825]
[1752897706493,0.21848767,118350.0,118340.0,0.6855896]
[1752897706730,0.23965767,118350.0,118340.0,0.6804096]
[1752897707001,0.22275916,118350.0,118340.0,0.00512608]
[1752897707232,0.55313781,118350.0,118340.0,0.07016608]
[1752897707845,0.55313781,118350.0,118340.0,0.40054473]
[1752897708093,0.22275916,118350.0,118340.0,0.40054473]
[1752897709775,0.55313781,118350.0,118340.0,0.40054473]
[1752897709973,0.22275916,118350.0,118340.0,0.40054473]
[1752897712592,0.55313781,118350.0,118340.0,0.07016608]
[1752897713151,0.55313781,118350.0,118340.0,0.00512608]
[1752897713366,0.55313781,118350.0,118340.0,0.07016608]
[1752897713580,0.55313781,118350.0,118340.0,0.00512608]
[1752897713847,0.55313781,118350.0,118340.0,0.07016608]
[1752897714054,0.24813116,118350.0,118340.0,0.06716608]
[1752897714341,0.57850981,118350.0,118340.0,0.06516608]
[1752897714629,0.57850981,118350.0,118340.0,0.06816608]
[1752897714834,0.57850981,118350.0,118340.0,0.06616608]
[1752897715507,0.57850981,118350.0,118340.0,0.06516608]
[1752897716002,0.24813116,118350.0,118340.0,0.06516608]
[1752897716430,0.58346773,118350.0,118340.0,0.06516608]
[1752897716667,0.57850981,118350.0,118340.0,0.00012608]
[1752897717147,0.24813116,118350.0,118340.0,0.06516608]
[1752897717617,0.57850981,118350.0,118340.0,0.06516608]
[1752897719122,0.59305066,118350.0,118340.0,0.06516608]
[1752897719791,0.26267201,118350.0,118340.0,0.06516608]
[1752897719974,0.59305066,118350.0,118340.0,0.06516608]
[1752897720180,0.59305066,118350.0,118340.0,0.00012608]
[1752897720396,0.59305066,118350.0,118340.0,0.06516608]
[1752897724916,0.26267201,118350.0,118340.0,0.06516608]
[1752897725097,0.59305066,118350.0,118340.0,0.06516608]
[1752897725482,0.26267201,118350.0,118340.0,0.06516608]
[1752897725881,0.59305066,118350.0,118340.0,0.06516608]
[1752897729015,0.26267201,118350.0,118340.0,0.06516608]
[1752897729338,0.59305066,118350.0,118340.0,0.06516608]
[1752897739256,0.26267201,118350.0,118340.0,0.06516608]
[1752897739538,0.59305066,118350.0,118340.0,0.06516608]
[1752897739808,0.26267201,118350.0,118340.0,0.06516608]
[1752897740036,0.59305066,118350.0,118340.0,0.06516608]
[1752897746925,0.26267201,118350.0,118340.0,0.06516608]
[1752897747128,0.59305066,118350.0,118340.0,0.06516608]
[1752897749946,0.26267201,118350.0,118340.0,0.06516608]
[1752897750131,0.59305066,118350.0,118340.0,0.06516608]
[1752897750542,0.57725066,118350.0,118340.0,0.06516608]
[1752897751913,0.55187866,118350.0,118340.0,0.06516608]
[1752897754936,0.56787866,118350.0,118340.0,0.06516608]
[1752897755889,0.23750001,118350.0,118340.0,0.06516608]
[1752897756079,0.56787866,118350.0,118340.0,0.06516608]
[1752897761531,0.56787866,118350.0,118340.0,0.06512608]
[1752897761875,0.92363231,118350.0,118340.0,0.06512608]
[1752897762253,0.59325366,118350.0,118340.0,0.06512608]
[1752897763130,0.59425366,118350.0,118340.0,0.06512608]
[1752897763721,0.92563231,118350.0,118340.0,0.06512608]
[1752897763946,0.59525366,118350.0,118340.0,0.06512608]
[1752897764655,0.92563231,118350.0,118340.0,0.06512608]
[1752897764811,0.92563231,118350.0,118340.0,0.00012608]
[1752897766928,0.59525366,118350.0,118340.0,0.00012608]
[1752897767852,0.92563231,118350.0,118340.0,0.00012608]
[1752897770406,0.94063253,118350.0,118340.0,0.00012608]
[1752897771819,0.27987523,118350.0,118340.0,0.00012608]
[1752897772056,0.94063253,118350.0,118340.0,0.00012608]
[1752897783500,0.27987523,118350.0,118340.0,0.00012608]
[1752897783724,0.26387523,118350.0,118340.0,0.00012608]
[1752897783943,0.59425388,118350.0,118340.0,0.00012608]
[1752897789176,1.01014281,118350.0,118340.0,0.00012608]
[1752897790861,1.15524281,118350.0,118340.0,0.00012608]
[1752897792137,1.49524281,118350.0,118340.0,0.00012608]
[1752897798058,1.48014281,118350.0,118340.0,0.00012608]
[1752897798308,0.18592021,118330.0,118320.0,0.0162]
[1752897798509,0.60375914,118330.0,118320.0,4.976e-05]
[1752897798729,0.60693914,118330.0,118320.0,4.976e-05]
[1752897798926,0.64861814,118330.0,118320.0,4.976e-05]
[1752897802493,0.97899679,118330.0,118320.0,4.976e-05]
[1752897803247,0.63231814,118330.0,118320.0,4.976e-05]
[1752897807906,0.30193949,118330.0,118320.0,4.976e-05]
[1752897808051,0.63231814,118330.0,118320.0,4.976e-05]
[1752897808437,0.30193949,118330.0,118320.0,4.976e-05]
[1752897808634,0.63231814,118330.0,118320.0,4.976e-05]
[1752897810118,0.62913814,118330.0,118320.0,0.01829976]
[1752897811177,0.20046106,118330.0,118320.0,0.03768976]
[1752897811393,0.17746963,118330.0,118320.0,0.36806841]
[1752897811652,0.17746963,118330.0,118320.0,0.32221999]
[1752897811861,0.16901884,118330.0,118320.0,0.31581841]
[1752897812056,0.16901884,118330.0,118320.0,0.32427006]
[1752897813424,0.16901884,118330.0,118320.0,0.31581841]
[1752897813580,0.16901884,118330.0,118320.0,0.31766841]
[1752897814382,0.16901884,118330.0,118320.0,0.0039]
[1752897814591,0.16901884,118330.0,118320.0,0.33427865]
[1752897814767,0.16901884,118330.0,118320.0,0.36667865]
[1752897819376,0.16901884,118330.0,118320.0,0.03445]
[1752897819602,0.16901884,118330.0,118320.0,0.01825]
[1752897819972,0.49939749,118330.0,118320.0,0.01825]
[1752897821254,0.16901884,118330.0,118320.0,0.01825]
[1752897821418,0.49939749,118330.0,118320.0,0.01825]
[1752897821638,0.49939749,118330.0,118320.0,0.03405]
[1752897822530,0.16901884,118330.0,118320.0,0.03405]
[1752897822720,0.49939749,118330.0,118320.0,0.03405]
[1752897822947,0.49939749,118330.0,118320.0,0.01825]
[1752897826788,0.16901884,118330.0,118320.0,0.01825]
[1752897826974,0.49939749,118330.0,118320.0,0.01825]
[1752897829809,0.50262749,118330.0,118320.0,0.01825]
[1752897830436,0.16901884,118330.0,118320.0,0.01825]
[1752897830874,0.49939749,118330.0,118320.0,0.01825]
[1752897831761,0.16901884,118330.0,118320.0,0.01825]
[1752897831972,0.49939749,118330.0,118320.0,0.03405]
[1752897832229,0.49939749,118330.0,118320.0,0.01825]
[1752897833827,0.16901884,118330.0,118320.0,0.01825]
[1752897834038,0.49939749,118330.0,118320.0,0.01825]
[1752897835891,0.50253749,118330.0,118320.0,0.01825]
[1752897838072,0.50464749,118330.0,118320.0,0.01825]
[1752897838580,0.16901884,118330.0,118320.0,0.01825]
[1752897838735,0.17746971,118330.0,118320.0,0.54131336]
[1752897838943,0.17746971,118330.0,118320.0,0.53286178]
[1752897839310,0.17746971,118330.0,118320.0,0.54131343]
[1752897839509,0.17746971,118330.0,118320.0,0.54976501]
[1752897839770,0.17746971,118330.0,118320.0,0.55821652]
[1752897840868,0.17746971,118330.0,118320.0,0.54976501]
[1752897841234,0.17746971,118330.0,118320.0,0.55821645]
[1752897841436,0.17746971,118330.0,118320.0,0.54976501]
[1752897841632,0.00844979,118340.0,118330.0,0.22717072]
[1752897841926,0.02534924,118340.0,118330.0,0.77688915]
[1752897842343,0.03379889,118340.0,118330.0,0.76843886]
[1752897842560,0.19435437,118340.0,118330.0,0.75813864]
[1752897842745,0.19435437,118340.0,118330.0,0.77504015]
[1752897842983,0.20280445,118340.0,118330.0,0.4446615]
[1752897843189,0.20280445,118340.0,118330.0,0.7834908]
[1752897843370,0.02534974,118340.0,118330.0,0.79194095]
[1752897843606,0.03379989,118340.0,118330.0,0.44466128]
[1752897843815,0.02534974,118340.0,118330.0,0.78349051]
[1752897844024,0.02534974,118340.0,118330.0,0.79194095]
[1752897844427,0.03379996,118340.0,118330.0,0.77503993]
[1752897844634,0.02534974,118340.0,118330.0,0.78349037]
[1752897845064,0.02534974,118340.0,118330.0,0.86924999]
[1752897845272,0.02534974,118340.0,118330.0,0.78534037]
[1752897846018,0.02534974,118340.0,118330.0,0.78349037]
[1752897846929,0.02534974,118340.0,118330.0,0.77503993]
[1752897847152,0.02534974,118340.0,118330.0,0.78534037]
[1752897847632,0.03379989,118340.0,118330.0,0.78534037]
[1752897847881,0.03379989,118340.0,118330.0,0.45496179]
[1752897848083,0.03379989,118340.0,118330.0,0.78534044]
[1752897848679,0.02534974,118340.0,118330.0,0.82452066]
[1752897849549,0.03379996,118340.0,118330.0,0.81607022]
[1752897850754,0.02534974,118340.0,118330.0,0.81607022]
[1752897850960,0.02534974,118340.0,118330.0,0.82452066]
[1752897851563,0.03379996,118340.0,118330.0,0.82452066]
[1752897851705,0.03379996,118340.0,118330.0,0.49414201]
[1752897851904,0.03379996,118340.0,118330.0,0.81607022]
[1752897852310,0.03379996,118340.0,118330.0,0.48569157]
[1752897852516,0.03379996,118340.0,118330.0,0.81607022]
[1752897852722,0.03379996,118340.0,118330.0,0.82452066]
[1752897852957,0.02534974,118340.0,118330.0,0.82452066]
[1752897853993,0.04225011,118340.0,118330.0,0.82452066]
[1752897854371,0.03379989,118340.0,118330.0,0.82452066]
[1752897856148,0.04225011,118340.0,118330.0,0.80637066]
[1752897856772,0.04225011,118340.0,118330.0,0.82197066]
[1752897857303,0.04225011,118340.0,118330.0,0.81352022]
[1752897857507,0.04225011,118340.0,118330.0,0.82197066]
[1752897858282,0.03379989,118340.0,118330.0,0.82197066]
[1752897858891,0.03379989,118340.0,118330.0,0.80637066]
[1752897859307,0.04225011,118340.0,118330.0,0.80637066]
[1752897859676,0.03380039,118340.0,118330.0,0.79792022]
[1752897860189,0.03380039,118340.0,118330.0,0.81352022]
[1752897860603,0.03380039,118340.0,118330.0,0.79792022]
[1752897863132,0.02535017,118340.0,118330.0,0.82197066]
[1752897863654,0.02534974,118340.0,118330.0,0.82382066]
[1752897864200,0.20296142,118350.0,118340.0,0.16900456]
[1752897864482,0.21986008,118350.0,118340.0,0.63979336]
[1752897864896,0.21986008,118350.0,118340.0,0.63134321]
[1752897865306,0.21986008,118350.0,118340.0,0.63979343]
[1752897865508,0.22195008,118350.0,118340.0,0.63979343]
[1752897865990,0.22195008,118350.0,118340.0,0.64824351]
[1752897866458,0.22195008,118350.0,118340.0,0.63979343]
[1752897866889,0.21350079,118350.0,118340.0,0.63134321]
[1752897867089,0.20505142,118350.0,118340.0,0.46233865]
[1752897868489,0.20505142,118350.0,118340.0,0.63979343]
[1752897870814,0.20505142,118350.0,118340.0,0.64824358]
[1752897871030,0.20505142,118350.0,118340.0,0.65669359]
[1752897871262,0.2219503,118350.0,118340.0,0.66514353]
[1752897871430,0.23039945,118350.0,118340.0,0.66514353]
[1752897872208,0.2219503,118350.0,118340.0,0.66514353]
[1752897872782,0.00844894,118350.0,118340.0,1.14013499]
[1752897872907,0.19581981,118370.0,118360.0,0.17742472]
[1752897873110,0.20635768,118370.0,118360.0,0.64817202]
[1752897873469,0.03379661,118350.0,118340.0,0.32931787]
[1752897873673,0.03379661,118350.0,118340.0,0.80006631]
[1752897873931,0.04224605,118350.0,118340.0,0.81696604]
[1752897874142,0.03388059,118350.0,118340.0,0.81696604]
[1752897874344,0.02543122,118350.0,118340.0,0.81696604]
[1752897874519,0.02543115,118350.0,118340.0,0.81696604]
[1752897875339,0.03388052,118350.0,118340.0,0.81696604]
[1752897878092,0.03388052,118350.0,118340.0,0.80851632]
[1752897878295,0.03388052,118350.0,118340.0,0.81796604]
[1752897878506,0.03388052,118350.0,118340.0,0.80226604]
[1752897878949,0.03388052,118350.0,118340.0,0.81826604]
[1752897879155,0.03388044,118350.0,118340.0,0.81826604]
[1752897879850,0.04232988,118350.0,118340.0,0.80981632]
[1752897879975,0.04232988,118350.0,118340.0,0.80226604]
[1752897880677,0.03388044,118350.0,118340.0,0.81826604]
[1752897881753,0.01698193,118350.0,118340.0,0.81826604]
[1752897881959,0.02543115,118350.0,118340.0,0.81826604]
[1752897882760,0.03388044,118350.0,118340.0,0.48788739]